fUSD/lending_fUSD_20250415
["ID","MTS","AMOUNT","RATE_DAILY","PERIOD"]
[358065253,1744681857082,-151.0,0.00017897,2]
[358065254,1744681857091,-151.0,0.00017897,2]
[358065255,1744681857101,-159.770063,0.00017897,2]
[358065256,1744681857111,-151.0,0.00017897,2]
[358065257,1744681857120,-151.0,0.00017897,2]
[358065258,1744681857129,-151.0,0.00017897,2]
[358065259,1744681857139,-151.0,0.00017897,2]
[358065260,1744681857149,-158.430162,0.00017897,2]
[358065261,1744681857158,-500.0,0.00017897,2]
[358065262,1744681857168,-500.0,0.00017897,2]
[358065263,1744681857178,-500.0,0.00017897,2]
[358065264,1744681857187,-500.0,0.00017897,2]
[358065265,1744681857198,-500.0,0.00017897,2]
[358065266,1744681857207,-313.47277606,0.00017897,2]
[358065267,1744681857217,-151.0,0.00017897,2]
[358065268,1744681857226,-151.0,0.00017897,2]
[358065269,1744681857236,-151.0,0.00017897,2]
[358065270,1744681857245,-151.0,0.00017897,2]
[358065271,1744681857255,-151.0,0.00017897,2]
[358065272,1744681857264,-151.0,0.00017897,2]
[358065273,1744681857273,-292.621958,0.00017897,2]
[358065274,1744681857283,-500.0,0.00017897,2]
[358065275,1744681857293,-500.0,0.00017897,2]
[358065276,1744681857305,-500.0,0.00017897,2]
[358065277,1744681857314,-500.0,0.00017897,2]
[358065278,1744681857324,-500.0,0.00017897,2]
[358065279,1744681857334,-168.43965525,0.00017897,2]
[358065280,1744681857343,-151.0,0.00017897,2]
[358065281,1744681857352,-255.62006493,0.00017897,2]
[358065282,1744681857362,-151.0,0.00017897,2]
[358065283,1744681857383,-151.0,0.00017897,2]
[358065284,1744681857392,-151.0,0.00017897,2]
[358065285,1744681857402,-151.0,0.00017897,2]
[358065286,1744681857412,-151.0,0.00017897,2]
[358065287,1744681857423,-693.306299,0.00017897,2]
[358065288,1744681857432,-693.306299,0.00017897,2]
[358065289,1744681857446,-693.306299,0.00017897,2]
[358065290,1744681857456,-693.306299,0.00017897,2]
[358065291,1744681857467,-693.306299,0.00017897,2]
[358065292,1744681857477,-693.306299,0.00017897,2]
[358065293,1744681857487,-693.306299,0.00017897,2]
[358065294,1744681857497,-693.306299,0.00017897,2]
[358065295,1744681857507,-693.306299,0.00017897,2]
[358065296,1744681857518,-693.306299,0.00017897,2]
[358065297,1744681857528,-693.306299,0.00017897,2]
[358065298,1744681857538,-693.306299,0.00017897,2]
[358065299,1744681857550,-890.45,0.00017897,2]
[358065300,1744681857560,-890.45,0.00017897,2]
[358065301,1744681857570,-890.45,0.00017897,2]
[358065302,1744681857581,-890.45,0.00017897,2]
[358065303,1744681857591,-890.45,0.00017897,2]
[358065304,1744681857602,-890.45,0.00017897,2]
[358065305,1744681857613,-890.45,0.00017897,2]
[358065306,1744681857624,-890.45,0.00017897,2]
[358065307,1744681857634,-890.45,0.00017897,2]
[358065308,1744681857644,-890.45,0.00017897,2]
[358065309,1744681857654,-890.45,0.00017897,2]
[358065310,1744681857664,-890.45,0.00017897,2]
[358065311,1744681857674,-890.45999414,0.00017897,2]
[358065312,1744681857684,-500.0,0.00017897,2]
[358065313,1744681857694,-500.0,0.00017897,2]
[358065314,1744681857703,-500.0,0.00017897,2]
[358065315,1744681857714,-234.07103896,0.00017897,2]
[358065316,1744681857724,-500.0,0.00017897,2]
[358065317,1744681857734,-500.0,0.00017897,2]
[358065318,1744681857744,-500.0,0.00017897,2]
[358065319,1744681857754,-500.0,0.00017897,2]
[358065320,1744681857763,-500.0,0.00017897,2]
[358065321,1744681857773,-500.0,0.00017897,2]
[358065322,1744681857783,-500.0,0.00017897,2]
[358065323,1744681857793,-361.7273936,0.00017897,2]
[358065324,1744681857805,-500.0,0.00017897,2]
[358065325,1744681857815,-500.0,0.00017897,2]
[358065326,1744681857825,-500.0,0.00017897,2]
[358065327,1744681857834,-417.90908186,0.00017897,2]
[358065328,1744681857844,-500.0,0.00017897,2]
[358065329,1744681857855,-500.0,0.00017897,2]
[358065330,1744681857865,-500.0,0.00017897,2]
[358065331,1744681857875,-500.0,0.00017897,2]
[358065332,1744681857884,-500.0,0.00017897,2]
[358065333,1744681857894,-245.2855061,0.00017897,2]
[358065334,1744681857904,-532.56,0.00017897,2]
[358065335,1744681857915,-532.56,0.00017897,2]
[358065336,1744681857925,-532.56,0.00017897,2]
[358065337,1744681857934,-532.56,0.00017897,2]
[358065338,1744681857944,-532.56,0.00017897,2]
[358065339,1744681857954,-532.56,0.00017897,2]
[358065340,1744681857962,-532.56,0.00017897,2]
[358065341,1744681857971,-500.0,0.00017897,2]
[358065342,1744681857979,-532.56,0.00017897,2]
[358065343,1744681857988,-239.89593487,0.00017897,2]
[358065344,1744681857997,-532.56,0.00017897,2]
[358065345,1744681858007,-532.56,0.00017897,2]
[358065346,1744681858015,-532.56,0.00017897,2]
[358065347,1744681858024,-532.56,0.00017897,2]
[358065348,1744681858034,-532.67391049,0.00017897,2]
[358065349,1744681858045,-536.2883188,0.00017897,2]
[358065350,1744681858055,-607.31,0.00017897,2]
[358065351,1744681858065,-607.31,0.00017897,2]
[358065352,1744681858075,-607.31,0.00017897,2]
[358065353,1744681858084,-607.31,0.00017897,2]
[358065354,1744681858094,-607.31,0.00017897,2]
[358065355,1744681858104,-607.31,0.00017897,2]
[358065356,1744681858114,-607.31,0.00017897,2]
[358065357,1744681858124,-607.31,0.00017897,2]
[358065358,1744681858135,-607.31,0.00017897,2]
[358065359,1744681858145,-607.31,0.00017897,2]
[358065360,1744681858154,-607.31,0.00017897,2]
[358065361,1744681858166,-607.54685516,0.00017897,2]
[358065362,1744681858175,-500.0,0.00017897,2]
[358065363,1744681858184,-500.0,0.00017897,2]
[358065364,1744681858194,-500.0,0.00017897,2]
[358065365,1744681858204,-150.59639086,0.00017897,2]
[358065366,1744681858218,-2003.386115,0.00017897,2]
[358065367,1744681858229,-2003.386115,0.00017897,2]
[358065368,1744681858240,-2003.386115,0.00017897,2]
[358065369,1744681858250,-2003.386115,0.00017897,2]
[358065370,1744681858260,-2003.386115,0.00017897,2]
[358065371,1744681858270,-2003.386115,0.00017897,2]
[358065372,1744681858280,-2003.386115,0.00017897,2]
[358065373,1744681858290,-2003.386115,0.00017897,2]
[358065374,1744681858300,-2003.386115,0.00017897,2]
[358065375,1744681858311,-2003.386115,0.00017897,2]
[358065376,1744681858321,-2003.386115,0.00017897,2]
[358065377,1744681858332,-2003.386115,0.00017897,2]
[358065378,1744681858342,-37100.63,0.00017897,2]
[358065379,1744681858352,-37100.63,0.00017897,2]
[358065380,1744681858363,-37100.63,0.00017897,2]
[358065381,1744681858373,-37100.63,0.00017897,2]
[358065382,1744681858382,-37100.63,0.00017897,2]
[358065383,1744681858395,-37100.63,0.00017897,2]
[358065384,1744681858405,-37100.63,0.00017897,2]
[358065385,1744681858415,-37100.63,0.00017897,2]
[358065386,1744681858426,-37100.63,0.00017897,2]
[358065387,1744681858439,-37100.63,0.00017897,2]
[358065388,1744681858450,-37100.63,0.00017897,2]
[358065389,1744681858460,-37100.63,0.00017897,2]
[358065390,1744681858471,-37100.78463647,0.00017897,2]
[358065391,1744681858481,-259.763878,0.00017897,2]
[358065392,1744681858491,-259.763878,0.00017897,2]
[358065393,1744681858500,-259.763878,0.00017897,2]
[358065394,1744681858511,-259.763878,0.00017897,2]
[358065395,1744681858525,-259.763878,0.00017897,2]
[358065396,1744681858536,-259.763878,0.00017897,2]
[358065397,1744681858547,-500.0,0.00017897,2]
[358065398,1744681858557,-259.763878,0.00017897,2]
[358065399,1744681858568,-500.0,0.00017897,2]
[358065400,1744681858577,-500.0,0.00017897,2]
[358065401,1744681858587,-259.763878,0.00017897,2]
[358065402,1744681858598,-500.0,0.00017897,2]
[358065403,1744681858608,-259.763878,0.00017897,2]
[358065404,1744681858619,-500.0,0.00017897,2]
[358065405,1744681858628,-500.0,0.00017897,2]
[358065406,1744681858638,-259.763878,0.00017897,2]
[358065407,1744681858648,-500.0,0.00017897,2]
[358065408,1744681858658,-500.0,0.00017897,2]
[358065409,1744681858667,-500.0,0.00017897,2]
[358065410,1744681858676,-623.96681269,0.00017897,2]
[358065411,1744681858687,-673.75,0.00017897,2]
[358065412,1744681858696,-673.75,0.00017897,2]
[358065413,1744681858707,-673.75,0.00017897,2]
[358065414,1744681858718,-673.75,0.00017897,2]
[358065415,1744681858728,-673.75,0.00017897,2]
[358065416,1744681858738,-673.75,0.00017897,2]
[358065417,1744681858748,-673.75,0.00017897,2]
[358065418,1744681858758,-673.75,0.00017897,2]
[358065419,1744681858768,-673.75,0.00017897,2]
[358065420,1744681858778,-673.75,0.00017897,2]
[358065421,1744681858788,-673.75,0.00017897,2]
[358065422,1744681858798,-673.75,0.00017897,2]
[358065423,1744681858808,-673.86851541,0.00017897,2]
[358065424,1744681858909,-572.92,0.00017897,2]
[358065425,1744681858919,-572.92,0.00017897,2]
[358065426,1744681858929,-572.92,0.00017897,2]
[358065427,1744681858939,-572.92,0.00017897,2]
[358065428,1744681858948,-572.92,0.00017897,2]
[358065429,1744681858957,-572.92,0.00017897,2]
[358065430,1744681858966,-572.92,0.00017897,2]
[358065431,1744681858976,-572.92,0.00017897,2]
[358065432,1744681858986,-572.92,0.00017897,2]
[358065433,1744681858995,-572.92,0.00017897,2]
[358065434,1744681859005,-572.92,0.00017897,2]
[358065435,1744681859016,-572.92,0.00017897,2]
[358065436,1744681859026,-572.97120962,0.00017897,2]
[358065437,1744681859036,-1566.79,0.00017897,2]
[358065438,1744681859047,-1566.79,0.00017897,2]
[358065439,1744681859057,-1566.79,0.00017897,2]
[358065440,1744681859067,-1566.79,0.00017897,2]
[358065441,1744681859077,-1566.79,0.00017897,2]
[358065442,1744681859087,-1566.79,0.00017897,2]
[358065443,1744681859097,-1566.79,0.00017897,2]
[358065444,1744681859108,-1566.79,0.00017897,2]
[358065445,1744681859118,-1566.79,0.00017897,2]
[358065446,1744681859128,-1566.79,0.00017897,2]
[358065447,1744681859139,-1566.79,0.00017897,2]
[358065448,1744681859148,-1566.79,0.00017897,2]
[358065449,1744681859159,-1566.9394778,0.00017897,2]
[358065450,1744681859169,-500.0,0.00017897,2]
[358065451,1744681859178,-500.0,0.00017897,2]
[358065452,1744681859190,-500.0,0.00017897,2]
[358065453,1744681859200,-500.0,0.00017897,2]
[358065454,1744681859210,-500.0,0.00017897,2]
[358065455,1744681859219,-589.477073,0.00017897,2]
[358065456,1744681859229,-500.0,0.00017897,2]
[358065457,1744681859239,-589.477073,0.00017897,2]
[358065458,1744681859249,-500.0,0.00017897,2]
[358065459,1744681859258,-589.477073,0.00017897,2]
[358065460,1744681859268,-500.0,0.00017897,2]
[358065461,1744681859278,-589.477073,0.00017897,2]
[358065462,1744681859289,-610.19729222,0.00017897,2]
[358065463,1744681859298,-589.477073,0.00017897,2]
[358065464,1744681859308,-151.0,0.00017897,2]
[358065465,1744681859318,-151.0,0.00017897,2]
[358065466,1744681859328,-151.0,0.00017897,2]
[358065467,1744681859338,-151.0,0.00017897,2]
[358065468,1744681859348,-589.477073,0.00017897,2]
[358065469,1744681859357,-267.573803,0.00017897,2]
[358065470,1744681859367,-589.477073,0.00017897,2]
[358065471,1744681859377,-589.477073,0.00017897,2]
[358065472,1744681859387,-589.477073,0.00017897,2]
[358065473,1744681859397,-589.477073,0.00017897,2]
[358065474,1744681859407,-6830.178297,0.00017897,2]
[358065475,1744681859416,-6830.178297,0.00017897,2]
[358065476,1744681859427,-1099.5,0.00017897,2]
[358065477,1744681859437,-1099.5,0.00017897,2]
[358065478,1744681859450,-6830.178297,0.00017897,2]
[358065479,1744681859460,-1099.5,0.00017897,2]
[358065480,1744681859471,-6830.178297,0.00017897,2]
[358065481,1744681859480,-1099.5,0.00017897,2]
[358065482,1744681859491,-1099.5,0.00017897,2]
[358065483,1744681859501,-6830.178297,0.00017897,2]
[358065484,1744681859512,-1099.5,0.00017897,2]
[358065485,1744681859525,-1099.5,0.00017897,2]
[358065486,1744681859535,-1099.5,0.00017897,2]
[358065487,1744681859545,-1099.5,0.00017897,2]
[358065488,1744681859555,-1099.5,0.00017897,2]
[358065489,1744681859565,-1099.5,0.00017897,2]
[358065490,1744681859575,-1099.5,0.00017897,2]
[358065491,1744681859584,-1099.6012253,0.00017897,2]
[358065492,1744681859598,-6830.178297,0.00017897,2]
[358065493,1744681859607,-813.18,0.00017897,2]
[358065494,1744681859617,-6830.178297,0.00017897,2]
[358065495,1744681859627,-6830.178297,0.00017897,2]
[358065496,1744681859636,-6830.178297,0.00017897,2]
[358065497,1744681859646,-996.76,0.00017897,2]
[358065498,1744681859656,-996.76,0.00017897,2]
[358065499,1744681859666,-6830.178297,0.00017897,2]
[358065500,1744681859676,-996.76,0.00017897,2]
[358065501,1744681859686,-996.76,0.00017897,2]
[358065502,1744681859696,-167.729012,0.00017897,2]
[358065503,1744681859706,-996.76,0.00017897,2]
[358065504,1744681859716,-996.76,0.00017897,2]
[358065505,1744681859725,-167.729012,0.00017897,2]
[358065506,1744681859735,-996.76,0.00017897,2]
[358065507,1744681859744,-813.18,0.00017897,2]
[358065508,1744681859754,-996.76,0.00017897,2]
[358065509,1744681859763,-813.18,0.00017897,2]
[358065510,1744681859772,-996.76,0.00017897,2]
[358065511,1744681859782,-813.18,0.00017897,2]
[358065512,1744681859791,-996.76,0.00017897,2]
[358065513,1744681859801,-167.729012,0.00017897,2]
[358065514,1744681859811,-813.18,0.00017897,2]
[358065515,1744681859821,-996.76,0.00017897,2]
[358065516,1744681859831,-813.18,0.00017897,2]
[358065517,1744681859841,-167.729012,0.00017897,2]
[358065518,1744681859851,-996.76,0.00017897,2]
[358065519,1744681859862,-813.18,0.00017897,2]
[358065520,1744681859871,-996.92764671,0.00017897,2]
[358065521,1744681859881,-167.729012,0.00017897,2]
[358065522,1744681859891,-813.18,0.00017897,2]
[358065523,1744681859901,-813.18,0.00017897,2]
[358065524,1744681859910,-813.18,0.00017897,2]
[358065525,1744681859920,-813.18,0.00017897,2]
[358065526,1744681859930,-560.31,0.00017897,2]
[358065527,1744681859941,-813.38597837,0.00017897,2]
[358065528,1744681859951,-560.31,0.00017897,2]
[358065529,1744681859960,-560.31,0.00017897,2]
[358065530,1744681859970,-560.31,0.00017897,2]
[358065531,1744681859980,-560.31,0.00017897,2]
[358065532,1744681859990,-560.31,0.00017897,2]
[358065533,1744681859999,-560.31,0.00017897,2]
[358065534,1744681860010,-167.729012,0.00017897,2]
[358065535,1744681860019,-560.31,0.00017897,2]
[358065536,1744681860030,-167.729012,0.00017897,2]
[358065537,1744681860040,-560.31,0.00017897,2]
[358065538,1744681860051,-560.31,0.00017897,2]
[358065539,1744681860061,-167.729012,0.00017897,2]
[358065540,1744681860071,-560.31,0.00017897,2]
[358065541,1744681860082,-167.729012,0.00017897,2]
[358065542,1744681860092,-560.31,0.00017897,2]
[358065543,1744681860102,-560.38310799,0.00017897,2]
[358065544,1744681860111,-167.729012,0.00017897,2]
[358065545,1744681860121,-641.42,0.00017897,2]
[358065546,1744681860130,-641.42,0.00017897,2]
[358065547,1744681860140,-641.42,0.00017897,2]
[358065548,1744681860149,-641.42,0.00017897,2]
[358065549,1744681860159,-641.42,0.00017897,2]
[358065550,1744681860168,-641.42,0.00017897,2]
[358065551,1744681860180,-641.42,0.00017897,2]
[358065552,1744681860190,-641.42,0.00017897,2]
[358065553,1744681860200,-641.42,0.00017897,2]
[358065554,1744681860211,-641.42,0.00017897,2]
[358065555,1744681860221,-641.42,0.00017897,2]
[358065556,1744681860232,-641.42,0.00017897,2]
[358065557,1744681860243,-641.65422552,0.00017897,2]
[358065558,1744681860253,-500.0,0.00017897,2]
[358065559,1744681860264,-500.0,0.00017897,2]
[358065560,1744681860275,-500.0,0.00017897,2]
[358065561,1744681860287,-500.0,0.00017897,2]
[358065562,1744681860298,-500.0,0.00017897,2]
[358065563,1744681860310,-500.0,0.00017897,2]
[358065564,1744681860321,-500.0,0.00017897,2]
[358065565,1744681860331,-500.0,0.00017897,2]
[358065566,1744681860342,-500.0,0.00017897,2]
[358065567,1744681860352,-500.0,0.00017897,2]
[358065568,1744681860364,-500.0,0.00017897,2]
[358065569,1744681860375,-194.09920603,0.00017897,2]
[358065570,1744681860386,-500.0,0.00017897,2]
[358065571,1744681860396,-500.0,0.00017897,2]
[358065572,1744681860406,-500.0,0.00017897,2]
[358065573,1744681860416,-500.0,0.00017897,2]
[358065574,1744681860428,-500.0,0.00017897,2]
[358065575,1744681860442,-500.0,0.00017897,2]
[358065576,1744681860451,-500.0,0.00017897,2]
[358065577,1744681860461,-500.0,0.00017897,2]
[358065578,1744681860473,-305.64393627,0.00017897,2]
[358065579,1744681860483,-150.0,0.00017897,2]
[358065580,1744681860493,-150.0,0.00017897,2]
[358065581,1744681860503,-150.0,0.00017897,2]
[358065582,1744681860514,-500.0,0.00017897,2]
[358065583,1744681860524,-150.0,0.00017897,2]
[358065584,1744681860534,-500.0,0.00017897,2]
[358065585,1744681860545,-500.0,0.00017897,2]
[358065586,1744681860556,-500.0,0.00017897,2]
[358065587,1744681860567,-500.0,0.00017897,2]
[358065588,1744681860577,-500.0,0.00017897,2]
[358065589,1744681860588,-150.0,0.00017897,2]
[358065590,1744681860599,-500.0,0.00017897,2]
[358065591,1744681860610,-500.0,0.00017897,2]
[358065592,1744681860620,-170.43363094,0.00017897,2]
[358065593,1744681860630,-150.0,0.00017897,2]
[358065594,1744681860642,-150.0,0.00017897,2]
[358065595,1744681860652,-150.0,0.00017897,2]
[358065596,1744681860662,-150.0,0.00017897,2]
[358065597,1744681860673,-150.0,0.00017897,2]
[358065598,1744681860683,-201.01930879,0.00017897,2]
[358065599,1744681860694,-291.112795,0.00017897,2]
[358065600,1744681860705,-3003.6,0.00017897,2]
[358065601,1744681860715,-291.112795,0.00017897,2]
[358065602,1744681860726,-3003.6,0.00017897,2]
[358065603,1744681860737,-291.112795,0.00017897,2]
[358065604,1744681860747,-3003.6,0.00017897,2]
[358065605,1744681860757,-3003.6,0.00017897,2]
[358065606,1744681860767,-291.112795,0.00017897,2]
[358065607,1744681860777,-237.744844,0.00017897,2]
[358065608,1744681860787,-3003.6,0.00017897,2]
[358065609,1744681860798,-291.112795,0.00017897,2]
[358065610,1744681860808,-237.744844,0.00017897,2]
[358065611,1744681860818,-3003.6,0.00017897,2]
[358065612,1744681860828,-237.744844,0.00017897,2]
[358065613,1744681860838,-3003.6,0.00017897,2]
[358065614,1744681860848,-237.744844,0.00017897,2]
[358065615,1744681860858,-3003.6,0.00017897,2]
[358065616,1744681860868,-3003.6,0.00017897,2]
[358065617,1744681860878,-237.744844,0.00017897,2]
[358065618,1744681860888,-3003.6,0.00017897,2]
[358065619,1744681860898,-3003.6,0.00017897,2]
[358065620,1744681860908,-3003.6,0.00017897,2]
[358065621,1744681860917,-3003.6712,0.00017897,2]
[358065622,1744681860927,-291.112795,0.00017897,2]
[358065623,1744681860937,-291.112795,0.00017897,2]
[358065624,1744681860947,-291.112795,0.00017897,2]
[358065625,1744681860966,-291.112795,0.00017897,2]
[358065626,1744681860977,-237.744844,0.00017897,2]
[358065627,1744681860987,-291.112795,0.00017897,2]
[358065628,1744681860998,-237.744844,0.00017897,2]
[358065629,1744681861008,-237.744844,0.00017897,2]
[358065630,1744681861018,-237.744844,0.00017897,2]
[358065631,1744681861028,-237.744844,0.00017897,2]
[358065632,1744681861038,-2746.58,0.00017897,2]
[358065633,1744681861049,-2746.58,0.00017897,2]
[358065634,1744681861059,-2746.58,0.00017897,2]
[358065635,1744681861069,-2746.58,0.00017897,2]
[358065636,1744681861079,-2746.58,0.00017897,2]
[358065637,1744681861090,-2746.58,0.00017897,2]
[358065638,1744681861100,-2746.58,0.00017897,2]
[358065639,1744681861110,-151.0,0.00017897,2]
[358065640,1744681861120,-2746.58,0.00017897,2]
[358065641,1744681861130,-2746.58,0.00017897,2]
[358065642,1744681861141,-151.0,0.00017897,2]
[358065643,1744681861151,-288.159966,0.00017897,2]
[358065644,1744681861162,-2746.58,0.00017897,2]
[358065645,1744681861172,-2746.58,0.00017897,2]
[358065646,1744681861182,-2746.58,0.00017897,2]
[358065647,1744681861193,-2746.75060151,0.00017897,2]
[358065648,1744681861203,-500.0,0.00017897,2]
[358065649,1744681861214,-500.0,0.00017897,2]
[358065650,1744681861225,-500.0,0.00017897,2]
[358065651,1744681861236,-392.93933898,0.00017897,2]
[358065652,1744681861246,-3284.86,0.00017897,2]
[358065653,1744681861257,-3284.86,0.00017897,2]
[358065654,1744681861267,-3284.86,0.00017897,2]
[358065655,1744681861278,-3284.86,0.00017897,2]
[358065656,1744681861288,-3284.86,0.00017897,2]
[358065657,1744681861299,-3284.86,0.00017897,2]
[358065658,1744681861311,-3284.86,0.00017897,2]
[358065659,1744681861322,-3284.86,0.00017897,2]
[358065660,1744681861333,-3284.86,0.00017897,2]
[358065661,1744681861343,-3284.86,0.00017897,2]
[358065662,1744681861353,-3284.86,0.00017897,2]
[358065663,1744681861365,-3284.86,0.00017897,2]
[358065664,1744681861375,-3285.08971029,0.00017897,2]
[358065665,1744681861386,-1247363.95842885,0.00017898,2]
[358065666,1744681861665,-663832.37442439,0.00017898,2]
[358065667,1744681861678,-259.50994997,0.00017898,2]
[358065668,1744681861700,-500.0,0.00017892,2]
[358065669,1744681861710,-60.06,0.00017898,2]
[358065670,1744681861723,-42852.0,0.00017898,2]
[358065671,1744681861734,-1682.55519211,0.00017898,2]
[358065672,1744681861746,-17022.92793926,0.00017898,2]
[358065673,1744681861888,-453.47542057,0.00017894,2]
[358065674,1744681863558,-46.52457943,0.00017894,2]
[358065675,1744681863568,-500.0,0.00017894,2]
[358065676,1744681863579,-500.0,0.00017895,2]
[358065677,1744681863588,-20.96579464,0.00017895,2]
[358065678,1744681863600,-479.03420536,0.00017895,2]
[358065679,1744681863610,-500.0,0.00017895,2]
[358065680,1744681863619,-637.61477744,0.00017895,2]
[358065681,1744681863629,-2948.58319133,0.00017898,2]
[358065682,1744681863641,-405.60631555,0.00017898,2]
[358065683,1744681863653,-1010.406841,0.00017898,2]
[358065684,1744681863664,-3074.05367742,0.00017898,2]
[358065685,1744681863722,-500.0,0.00017891,2]
[358065686,1744681863732,-1653.0664385,0.00017898,2]
[358065687,1744681863744,-607.58914645,0.00017898,2]
[358065688,1744681863755,-554.7136255,0.00017898,2]
[358065689,1744681863766,-8555.55,0.00017898,2]
[358065690,1744681883076,1000.0,0.00016993,2]
[358065691,1744681921680,350.0,0.00019444,12]
[358065692,1744681921760,350.0,0.00017743,12]
[358065693,1744681921999,350.0,0.00017829,12]
[358065694,1744682129470,-160.238731,0.00017586,2]
[358065695,1744682129494,-89.761269,0.00017675,2]
[358065696,1744682153544,200.0,0.00016917,7]
[358065697,1744682176870,-210.238731,0.00017675,2]
[358065698,1744682222096,-300.0,0.00017675,2]
[358065699,1744682282227,-250.0,0.00017676,2]
[358065700,1744682358632,2000.0,0.00013699,2]
[358065701,1744682358925,2000.0,0.00013802,2]
[358065702,1744682359417,2000.0,0.00013905,2]
[358065703,1744682359780,2000.0,0.00014009,2]
[358065704,1744682360067,2000.0,0.00014112,2]
[358065705,1744682360359,2000.0,0.00014216,2]
[358065706,1744682360705,2000.0,0.00014319,2]
[358065707,1744682361008,2000.0,0.00014422,2]
[358065708,1744682361832,2000.0,0.00014526,2]
[358065709,1744682362174,2000.0,0.00014629,2]
[358065710,1744682362487,2000.0,0.00014732,2]
[358065711,1744682362778,2000.0,0.00014836,2]
[358065712,1744682363078,2000.0,0.00014939,2]
[358065713,1744682363380,2000.0,0.00015043,2]
[358065714,1744682363838,2000.0,0.00015146,2]
[358065715,1744682366000,2000.0,0.00015249,2]
[358065716,1744682366309,2000.0,0.00015353,2]
[358065717,1744682366757,2000.0,0.00015456,2]
[358065718,1744682367044,2000.0,0.0001556,2]
[358065719,1744682367350,2000.0,0.00015663,2]
[358065720,1744682367686,2000.0,0.00015766,2]
[358065721,1744682368035,2000.0,0.0001587,2]
[358065722,1744682368191,2000.0,0.00015973,2]
[358065723,1744682368471,2000.0,0.00016077,2]
[358065724,1744682369277,2000.0,0.0001618,2]
[358065725,1744682369563,2000.0,0.00016283,2]
[358065726,1744682369839,2000.0,0.00016387,2]
[358065727,1744682370138,2000.0,0.0001649,2]
[358065728,1744682370960,2000.0,0.00016593,2]
[358065729,1744682371274,2000.0,0.00016697,2]
[358065730,1744682372202,2000.0,0.000168,2]
[358065731,1744682372496,2000.0,0.00016904,2]
[358065732,1744682372807,2000.0,0.00017007,2]
[358065733,1744682373112,2000.0,0.0001711,2]
[358065734,1744682373401,2000.0,0.00017214,2]
[358065735,1744682373697,2000.0,0.00017317,2]
[358065736,1744682374145,2000.0,0.00017421,2]
[358065737,1744682441749,-2000.0,0.00017524,2]
[358065738,1744682441773,-80.803206,0.00017627,2]
[358065739,1744682462175,-155.74886663,0.00017627,2]
[358065740,1744682516745,559.52,0.0001493,2]
[358065741,1744682516962,559.52,0.00017194,2]
[358065742,1744682678307,-400.7833,0.00017627,2]
[358065743,1744682679569,19171.29,0.00016848,2]
[358065744,1744682762599,-250.0,0.00017627,2]
[358065745,1744682823770,-300.0,0.00017627,2]
[358065746,1744682825070,-191.2601,0.00017627,2]
[358065750,1744682961120,-621.40452737,0.00017627,2]
[358065751,1744682961146,-250.0,0.00017662,2]
[358065752,1744682961167,-2482.54137263,0.00017691,2]
[358065758,1744683003167,-207.24544552,0.00017691,2]
[358065760,1744683032165,-4506.06288185,0.00017691,2]
[358065761,1744683032174,-250.0,0.00017695,2]